bitfinex-derivatives/quotes_BNBF0:USTF0_20250326
["timestamp","ask_amount","ask_price","bid_price","bid_amount"]
[1743026825814,0.996,617.59,617.05,0.26344034]
[1743026826015,0.996,617.59,617.06,0.2634406]
[1743026826316,0.996,617.59,617.07,0.2634406]
[1743026826512,0.996,617.59,617.08,0.2634406]
[1743026826718,0.996,617.59,617.09,0.2634406]
[1743026826914,0.996,617.59,617.1,0.2634406]
[1743026827213,0.996,617.59,617.11,0.2634406]
[1743026827418,0.996,617.59,617.05,0.2634406]
[1743026827613,0.996,617.59,617.06,0.26343408]
[1743026827813,0.996,617.59,617.05,0.26343408]
[1743026828016,0.996,617.59,617.06,0.26343408]
[1743026828213,0.996,617.59,617.05,0.26343408]
[1743026828418,0.996,617.59,617.06,0.26343408]
[1743026828620,0.996,617.59,617.07,0.26343408]
[1743026828813,0.996,617.59,617.05,0.26343408]
[1743026829017,0.996,617.59,617.06,0.26343408]
[1743026829213,0.996,617.59,617.07,0.2634406]
[1743026829414,0.996,617.59,617.04,0.2634406]
[1743026829719,0.996,617.59,617.05,0.2634406]
[1743026829921,0.996,617.59,617.04,0.2634406]
[1743026830118,1.176,617.58,617.04,0.2634406]
[1743026830319,1.176,617.58,617.04,0.54526419]
[1743026830616,1.176,617.58,617.05,0.2634406]
[1743026832316,1.176,617.58,617.06,0.2634406]
[1743026832520,1.176,617.58,617.07,0.2634406]
[1743026832720,1.176,617.58,617.05,0.2634406]
[1743026832921,1.176,617.58,617.06,0.2634406]
[1743026833226,1.176,617.58,617.04,0.28182473]
[1743026833227,1.176,617.58,617.07,0.2634406]
[1743026833425,1.176,617.58,617.08,0.2634406]
[1743026833726,1.176,617.58,617.09,0.2634406]
[1743026833927,1.176,617.58,617.1,0.2634406]
[1743026834139,1.176,617.58,617.05,0.2634406]
[1743026834326,1.176,617.58,617.06,0.2634406]
[1743026834526,1.176,617.58,617.05,0.2634406]
[1743026835227,1.176,617.58,617.04,0.2634406]
[1743026835427,1.176,617.58,617.05,0.2634406]
[1743026835628,1.176,617.58,617.04,0.2634406]
[1743026835827,1.176,617.58,617.05,0.2634406]
[1743026836127,1.176,617.58,617.06,0.2634406]
[1743026836329,1.176,617.58,617.07,0.2634406]
[1743026836526,1.176,617.58,617.08,0.2634406]
[1743026836727,1.176,617.58,617.09,0.2634406]
[1743026836923,1.176,617.58,617.1,0.2634406]
[1743026837128,1.176,617.58,617.05,0.2634406]
[1743026837331,1.176,617.58,617.11,0.2634406]
[1743026837530,1.176,617.58,617.12,0.2634406]
[1743026837829,1.176,617.58,617.04,0.28182473]
[1743026838027,1.176,617.58,617.05,0.26342956]
[1743026839932,1.176,617.58,617.04,0.28182473]
[1743026840128,1.176,617.58,617.05,0.58755864]
[1743026840334,1.176,617.58,617.06,0.58755338]
[1743026840534,1.176,617.58,617.07,0.32411233]
[1743026840828,1.176,617.58,617.08,0.2634358]
[1743026841035,1.176,617.58,617.09,0.32410183]
[1743026841235,1.176,617.58,617.1,0.2634358]
[1743026841436,1.176,617.58,617.11,0.32409132]
[1743026841637,1.176,617.58,617.12,0.2634358]
[1743026841939,2.181,617.58,617.13,0.32408082]
[1743026842332,2.181,617.58,617.14,0.26336044]
[1743026842537,2.181,617.58,617.15,0.32407032]
[1743026842836,2.181,617.58,617.16,0.26336044]
[1743026843135,2.181,617.58,617.17,0.32405982]
[1743026843331,2.181,617.58,617.18,0.26336044]
[1743026843836,2.181,617.58,617.19,0.32404932]
[1743026844131,2.181,617.58,617.2,0.26336044]
[1743026844536,2.181,617.58,617.2,0.5874045]
[1743026844735,2.181,617.58,617.21,0.26336044]
[1743026845336,3.277,617.58,617.21,0.26336044]
[1743026846935,3.277,617.58,617.2,0.32404406]
[1743026847238,3.277,617.58,617.21,0.26334805]
[1743026856546,3.277,617.58,617.2,0.60581061]
[1743026856749,3.277,617.58,617.21,0.26334266]
[1743026858141,3.277,617.58,617.2,0.60581061]
[1743026858347,3.277,617.58,617.21,0.26334265]
[1743026860152,3.277,617.58,617.22,0.263335]
[1743026860351,3.277,617.58,617.23,0.263335]
[1743026860550,3.277,617.58,617.21,0.263335]
[1743026860751,3.277,617.58,617.22,0.263335]
[1743026860946,3.277,617.58,617.2,0.60581061]
[1743026860947,3.277,617.58,617.21,0.263335]
[1743026861149,3.277,617.58,617.22,0.263335]
[1743026861346,3.277,617.58,617.23,0.58736332]
[1743026861546,3.277,617.58,617.24,0.58735807]
[1743026861745,3.277,617.58,617.25,0.58735282]
[1743026861951,3.277,617.58,616.87,1.20028437]
[1743026861952,3.277,617.58,617.26,0.58734757]
[1743026862145,3.277,617.58,616.87,1.20028437]
[1743026862146,3.277,617.58,617.27,0.32400732]
[1743026862955,3.277,617.58,617.28,0.26330211]
[1743026863252,3.277,617.58,617.29,0.32399682]
[1743026878466,3.277,617.58,617.3,0.26337721]
[1743026878965,1.176,617.58,617.29,0.32399682]
[1743026880164,1.176,617.58,617.3,0.26339554]
[1743026880667,1.176,617.58,617.31,0.26339209]
[1743026880970,1.176,617.58,617.32,0.26339209]
[1743026881166,1.176,617.58,617.3,0.26339209]
[1743026881365,1.176,617.58,617.31,0.26339209]
[1743026881561,1.176,617.58,617.32,0.26339209]
[1743026881865,1.176,617.58,617.33,0.26339546]
[1743026882065,1.176,617.58,617.3,0.26339546]
[1743026883368,1.176,617.58,617.29,0.32399682]
[1743026883369,1.176,617.58,617.31,0.26339687]
[1743026883567,1.176,617.58,617.3,0.26339687]
[1743026883869,1.176,617.58,617.31,0.26339687]
[1743026884068,1.176,617.58,617.32,0.26339687]
[1743026884271,1.176,617.58,617.3,0.26339687]
[1743026884471,1.176,617.58,617.31,0.26339687]
[1743026884672,1.176,617.58,617.3,0.26339687]
[1743026884865,1.176,617.58,617.31,0.26339687]
[1743026885065,1.176,617.58,617.32,0.26339687]
[1743026885270,1.176,617.58,617.3,0.26339687]
[1743026885469,1.176,617.58,617.31,0.26339687]
[1743026885669,1.176,617.58,617.32,0.26339687]
[1743026885872,1.176,617.58,617.33,0.26339687]
[1743026886173,1.176,617.58,617.34,0.26339687]
[1743026886474,1.552,617.61,617.35,0.2633775]
[1743026886666,1.552,617.61,617.3,0.2633775]
[1743026886872,1.552,617.61,617.31,0.2633775]
[1743026887069,1.552,617.61,617.3,0.2633775]
[1743026887270,1.552,617.61,617.31,0.2633775]
[1743026887472,1.552,617.61,617.3,0.2633775]
[1743026887672,1.552,617.61,617.31,0.2633775]
[1743026887873,1.552,617.61,617.32,0.2633775]
[1743026888174,1.552,617.61,617.29,0.32399682]
[1743026888175,1.552,617.61,617.33,0.2633775]
[1743026888373,1.552,617.61,617.3,0.2633775]
[1743026888573,1.552,617.61,617.31,0.2633775]
[1743026888775,1.552,617.61,617.32,0.2633775]
[1743026888970,1.552,617.61,617.3,0.2633775]
[1743026889180,0.941,617.6,617.3,0.2633775]
[1743026897682,0.941,617.6,617.31,0.26336709]
[1743026897887,0.941,617.6,617.32,0.26336709]
[1743026898187,0.941,617.6,617.33,0.26336709]
[1743026898385,0.941,617.6,617.3,0.26336709]
[1743026898584,0.941,617.6,617.31,0.26336709]
[1743026898786,0.941,617.6,617.32,0.26336845]
[1743026898985,0.941,617.6,617.33,0.26336845]
[1743026899488,0.941,617.6,617.34,0.26336845]
[1743026899783,0.941,617.6,617.35,0.26336845]
[1743026899978,0.941,617.6,617.3,0.26336845]
[1743026900185,0.941,617.6,617.31,0.26336845]
[1743026900380,0.941,617.6,617.32,0.26336845]
[1743026900581,0.941,617.6,617.33,0.26336845]
[1743026900787,0.941,617.6,617.34,0.26336309]
[1743026900981,0.941,617.6,617.3,0.26336309]
[1743026901186,0.941,617.6,617.31,0.26336309]
[1743026901387,0.941,617.6,617.3,0.26336309]
[1743026901586,0.941,617.6,617.31,0.26336309]
[1743026901783,0.941,617.6,617.32,0.26336309]
[1743026901988,0.941,617.6,617.33,0.26336309]
[1743026902288,0.941,617.6,617.34,0.26336309]
[1743026902488,0.941,617.6,617.3,0.26336309]
[1743026902683,0.941,617.6,617.29,0.32399682]
[1743026902684,0.941,617.6,617.31,0.26336309]
[1743026902885,0.941,617.6,617.32,0.26336309]
[1743026903083,0.941,617.6,617.3,0.26336309]
[1743026903286,0.941,617.6,617.31,0.26336309]
[1743026903483,0.941,617.6,617.32,0.26336309]
[1743026903683,0.941,617.6,617.3,0.26336309]
[1743026903887,0.941,617.6,617.31,0.26336309]
[1743026904090,0.941,617.6,617.3,0.26336309]
[1743026904391,0.941,617.6,617.31,0.26336309]
[1743026904592,0.941,617.6,617.32,0.26336309]
[1743026904892,0.941,617.6,617.33,0.26336309]
[1743026905092,0.941,617.6,617.3,0.26336309]
[1743026905295,0.941,617.6,617.31,0.26336309]
[1743026905491,0.941,617.6,617.3,0.26336309]
[1743026905690,0.941,617.6,617.31,0.26336309]
[1743026905889,0.941,617.6,617.3,0.26336309]
[1743026906086,0.941,617.6,617.31,0.26336309]
[1743026906290,0.941,617.6,617.32,0.26336309]
[1743026906492,0.941,617.6,617.3,0.26336309]
[1743026906693,0.941,617.6,617.31,0.26336309]
[1743026906894,0.941,617.6,617.32,0.26336309]
[1743026907089,0.941,617.6,617.29,0.32399682]
[1743026907293,0.941,617.6,617.3,0.2633628]
[1743026908195,1.552,617.61,617.3,0.2633628]
[1743026908797,1.552,617.61,617.31,0.2633732]
[1743026908996,1.552,617.61,617.32,0.2633732]
[1743026909196,1.552,617.61,617.3,0.2633732]
[1743026909394,1.552,617.61,617.31,0.2633732]
[1743026909698,1.552,617.61,617.32,0.2633732]
[1743026909999,1.552,617.61,617.33,0.2633732]
[1743026910296,1.552,617.61,617.34,0.2633732]
[1743026910497,1.552,617.61,617.3,0.2633732]
[1743026910797,1.552,617.61,617.31,0.2633732]
[1743026910991,1.552,617.61,617.29,0.32399682]
[1743026910992,1.552,617.61,617.3,0.2633732]
[1743026911196,0.698,617.61,617.31,0.2633732]
[1743026911391,0.705,617.6,617.32,0.2633732]
[1743026911595,0.705,617.6,617.3,0.2633732]
[1743026911798,0.705,617.6,617.31,0.2633732]
[1743026912097,0.705,617.6,617.32,0.2633732]
[1743026912398,0.705,617.6,617.33,0.2633732]
[1743026912605,0.705,617.6,617.3,0.2633732]
[1743026912900,0.705,617.6,617.31,0.2633732]
[1743026913094,0.705,617.6,617.32,0.2633732]
[1743026913293,0.705,617.6,617.33,0.2633732]
[1743026913494,0.705,617.6,617.3,0.2633732]
[1743026913697,0.705,617.6,617.31,0.2633732]
[1743026913900,0.705,617.6,617.32,0.2633732]
[1743026914098,0.705,617.6,617.33,0.2633732]
[1743026914297,0.705,617.6,617.34,0.2633732]
[1743026914494,0.705,617.6,617.3,0.2633732]
[1743026914700,0.705,617.6,617.31,0.2633732]
[1743026914900,0.705,617.6,617.3,0.2633732]
[1743026915100,1.429,617.6,617.31,0.2633732]
[1743026915296,1.429,617.6,617.32,0.2633732]
[1743026915501,1.429,617.6,617.33,0.2633732]
[1743026915803,1.429,617.6,617.34,0.2633732]
[1743026916008,1.429,617.6,617.3,0.2633732]
[1743026916303,1.429,617.6,617.31,0.2633732]
[1743026916504,1.429,617.6,617.3,0.2633732]
[1743026916705,1.429,617.6,617.29,0.32399682]
[1743026917006,1.429,617.6,617.3,0.26337155]
[1743026923203,1.429,617.6,617.29,0.32399682]
[1743026923609,0.724,617.6,617.29,0.32399682]
[1743026924006,0.724,617.6,617.2,1.20028437]
[1743026924208,0.724,617.6,617.21,0.26345394]
[1743026924404,0.724,617.6,617.2,1.20028437]
[1743026926608,1.96959706,617.59,617.2,1.20028437]
[1743026927114,1.96959706,617.59,616.9,0.28184185]
[1743026927309,0.972,617.59,616.91,0.26354981]
[1743026928113,0.972,617.59,616.92,0.26354976]
[1743026928314,0.972,617.59,616.93,0.26354976]
[1743026928516,0.972,617.59,616.82,0.26354976]
[1743026928810,0.972,617.59,616.83,0.26354976]
[1743026929517,0.972,617.59,616.84,0.2818955]
[1743026929716,0.972,617.59,616.85,0.26354976]
[1743026931109,0.972,617.59,616.84,0.2818955]
[1743026931313,0.972,617.59,616.86,0.26354391]
[1743026931525,0.972,617.59,616.87,0.26354391]
[1743026931710,0.972,617.59,616.88,0.26354391]
[1743026931913,1.066,617.58,616.89,0.26354391]
[1743026932113,1.066,617.58,616.85,0.26354391]
[1743026932314,1.066,617.58,616.86,0.26354391]
[1743026932515,1.066,617.58,616.87,0.26354391]
[1743026932714,1.066,617.58,616.85,0.26354391]
[1743026932915,1.066,617.58,616.84,0.2818955]
[1743026932916,2.02,617.58,616.84,0.2818955]
[1743026933113,2.02,617.58,616.85,0.26352704]
[1743026933618,2.02,617.58,616.86,0.32422267]
[1743026933819,2.02,617.58,616.87,0.26352704]
[1743026934113,2.02,617.58,616.88,0.32421216]
[1743026934517,2.02,617.58,616.89,0.26351597]
[1743026934718,2.02,617.58,616.9,0.32420165]
[1743026934914,2.02,617.58,616.91,0.26351597]
[1743026935917,2.02,617.58,616.92,0.26351542]
[1743026936217,2.02,617.58,616.93,0.26351542]
[1743026936414,2.02,617.58,616.94,0.26351542]
[1743026936718,2.02,617.58,616.95,0.26351542]
[1743026936921,2.02,617.58,616.91,0.26351542]
[1743026937120,2.02,617.58,616.92,0.26351542]
[1743026937312,2.02,617.58,616.93,0.26351542]
[1743026937517,2.02,617.58,616.9,0.32420165]
[1743026937518,2.02,617.58,616.94,0.26352397]
[1743026937715,2.02,617.58,616.91,0.26352397]
[1743026937918,2.02,617.58,616.92,0.26352397]
[1743026938114,2.02,617.58,616.91,0.26352397]
[1743026938316,2.02,617.58,616.92,0.26352397]
[1743026938516,2.02,617.58,616.9,0.32420165]
[1743026938517,2.02,617.58,616.93,0.26352397]
[1743026938719,2.02,617.58,616.94,0.26352397]
[1743026938917,2.02,617.58,616.91,0.26352397]
[1743026939121,2.02,617.58,616.92,0.26354864]
[1743026939321,2.02,617.58,616.91,0.26354864]
[1743026939621,2.02,617.58,616.92,0.26354864]
[1743026939817,2.02,617.58,616.91,0.26354864]
[1743026940015,2.02,617.58,616.92,0.26354864]
[1743026940321,2.02,617.58,616.93,0.26354864]
[1743026940521,2.02,617.58,616.9,0.32420165]
[1743026940720,2.02,617.58,616.91,0.26354706]
[1743026943325,2.02,617.58,616.9,0.32420165]
[1743026943525,2.02,617.58,616.91,0.26354847]
[1743026944426,2.937,617.58,616.91,0.26354847]
[1743026949622,2.937,617.58,616.9,0.32420165]
[1743026949821,2.937,617.58,616.91,0.26354851]
[1743026950025,2.937,617.58,616.9,0.32420165]
[1743026950527,0.28197659,617.57,616.9,0.32420165]
[1743026950927,1.27439325,617.57,616.9,0.32420165]
[1743026952124,0.99241666,617.57,616.9,0.32420165]
[1743026952522,0.28196517,617.56,616.9,0.32420165]
[1743026955032,1.871,617.58,616.9,0.32420165]
[1743026957931,0.28201087,617.57,616.9,0.32420165]
[1743026958135,1.904,617.58,616.9,0.32420165]
[1743026959437,0.28201315,617.57,616.9,0.32420165]
[1743026960638,0.92901315,617.57,616.9,0.32420165]
[1743026961044,0.647,617.57,616.9,0.32420165]
[1743026962443,0.28202458,617.56,616.9,0.32420165]
[1743026964141,0.647,617.57,616.9,0.32420165]
[1743026964350,0.99241666,617.55,616.9,0.32420165]
[1743026964949,0.99241666,617.56,616.9,0.32420165]
[1743026965441,0.28203601,617.54,616.9,0.32420165]
[1743026965647,1.095,617.53,616.9,0.32420165]
[1743026972748,1.095,617.53,616.91,0.26360976]
[1743026973544,1.095,617.53,616.9,0.32420165]
[1743026975047,0.861,617.52,616.9,0.32420165]
[1743026981948,0.99241666,617.51,616.9,0.32420165]
[1743026982855,0.99241666,617.5,616.9,0.32420165]
[1743026983048,0.99241666,617.49,616.9,0.32420165]
[1743026983455,1.24860164,617.48,616.43,1.20028437]
[1743026983754,2.2410183,617.48,616.59,0.28198345]
[1743026983954,0.99241666,617.48,616.59,0.28198345]
[1743026984152,0.99241666,617.47,616.44,0.32444357]
[1743026984351,1.24860164,617.46,616.57,0.28201544]
[1743026984549,2.22141666,617.47,616.57,0.28201544]
[1743026984550,1.24860164,617.45,616.57,0.28201544]
[1743026984854,2.22141666,617.47,616.44,0.32444357]
[1743026984855,1.24860164,617.46,616.44,0.32444357]
[1743026985055,0.99241666,617.44,616.44,0.32444357]
[1743026985354,0.99241666,617.44,616.57,0.28202115]
[1743026985557,0.99241666,617.43,616.44,0.32444357]
[1743026986155,0.99241666,617.42,616.44,0.32444357]
[1743026986358,1.27447553,617.42,616.45,0.28205887]
[1743026986656,1.27447553,617.42,616.46,0.32443305]
[1743026986856,0.99241666,617.41,616.46,0.32443305]
[1743026987653,1.84241666,617.4,616.46,0.32443305]
[1743026988158,0.99241666,617.39,616.46,0.32443305]
[1743026988656,0.99241666,617.38,616.46,0.32443305]
[1743026989158,0.99241666,617.37,616.46,0.32443305]
[1743026989961,0.99241666,617.36,616.46,0.32443305]
[1743026990260,0.99241666,617.35,616.46,0.32443305]
[1743026990960,0.99241666,617.34,616.46,0.32443305]
[1743026991159,0.85,617.4,616.46,0.32443305]
[1743026991961,0.99679599,617.39,616.46,0.32443305]
[1743026992557,0.99679599,617.38,616.46,0.32443305]
[1743026993658,0.99679599,617.37,616.46,0.32443305]
[1743026994063,0.99679599,617.36,616.46,0.32443305]
[1743026994657,0.99679599,617.35,616.46,0.32443305]
[1743026995059,0.99679599,617.34,616.46,0.32443305]
[1743026995664,0.99679599,617.33,616.46,0.32443305]
[1743026996366,0.99679599,617.32,616.46,0.32443305]
[1743026996864,0.99679599,617.31,616.46,0.32443305]
[1743026997263,0.648,617.3,616.46,0.32443305]
[1743027005478,0.648,617.3,616.54,1.20028437]
[1743027005873,0.648,617.3,616.55,0.32438569]
[1743027008376,1.128,617.29,616.55,0.32438569]
[1743027014476,0.861,617.28,616.55,0.32438569]
[1743027020674,1.042,617.27,616.55,0.32438569]
[1743027022279,0.952,617.26,616.55,0.32438569]
[1743027030793,0.878,617.25,616.55,0.32438569]
[1743027032592,0.878,617.25,616.56,0.26360847]
[1743027032792,0.878,617.25,616.57,0.32437517]
[1743027033299,0.878,617.25,616.58,0.26361021]
[1743027033498,0.878,617.25,616.59,0.32436465]
[1743027033696,0.878,617.25,616.6,0.26361021]
[1743027033896,0.878,617.25,616.61,0.32435412]
[1743027034097,0.878,617.25,616.62,0.26361021]
[1743027034293,0.878,617.25,616.63,0.3243436]
[1743027034499,0.878,617.25,616.64,0.26361021]
[1743027034799,0.878,617.25,616.64,0.58794855]
[1743027035098,0.878,617.25,616.65,0.26361021]
[1743027036396,0.878,617.25,616.66,0.26361225]
[1743027036599,0.878,617.25,616.65,0.26361225]
[1743027036802,0.878,617.25,616.64,0.32433834]
[1743027036803,0.878,617.25,616.66,0.26361225]
[1743027037094,0.878,617.25,616.67,0.26361225]
[1743027037294,0.878,617.25,616.64,0.32433834]
[1743027037295,0.878,617.25,616.65,0.26361225]
[1743027037500,0.878,617.25,616.66,0.26361225]
[1743027037693,0.878,617.25,616.65,0.26361225]
[1743027037894,0.878,617.25,616.66,0.26361225]
[1743027038092,0.878,617.25,616.67,0.26361225]
[1743027038295,0.878,617.25,616.68,0.26361225]
[1743027038498,0.878,617.25,616.65,0.26361225]
[1743027038697,0.878,617.25,616.66,0.26361225]
[1743027038895,0.878,617.25,616.67,0.26361225]
[1743027039096,0.878,617.25,616.65,0.26361225]
[1743027039297,0.878,617.25,616.66,0.26361225]
[1743027039499,0.878,617.25,616.67,0.26361225]
[1743027039700,0.878,617.25,616.65,0.26361225]
[1743027039894,0.878,617.25,616.66,0.26361225]
[1743027040100,0.878,617.25,616.65,0.26361225]
[1743027040301,0.878,617.25,616.66,0.26361225]
[1743027040505,0.878,617.25,616.64,0.32433834]
[1743027040506,0.878,617.25,616.65,0.26361225]
[1743027040806,0.878,617.25,616.66,0.26361225]
[1743027041001,0.878,617.25,616.67,0.26361225]
[1743027041202,0.878,617.25,616.64,0.32433834]
[1743027041203,0.878,617.25,616.68,0.26361225]
[1743027041404,0.878,617.25,616.65,0.26361225]
[1743027041601,0.878,617.25,616.66,0.26361225]
[1743027041901,0.878,617.25,616.67,0.26361225]
[1743027042105,0.878,617.25,616.65,0.26361225]
[1743027042305,0.878,617.25,616.66,0.26361225]
[1743027042602,0.878,617.25,616.67,0.26361225]
[1743027042809,0.878,617.25,616.65,0.26361225]
[1743027043106,0.878,617.25,616.66,0.26361225]
[1743027043302,0.878,617.25,616.65,0.26361225]
[1743027043607,0.878,617.25,616.66,0.26361225]
[1743027044004,0.878,617.25,616.67,0.26361225]
[1743027044201,0.878,617.25,616.64,0.32433834]
[1743027044406,0.878,617.25,616.65,0.26360664]
[1743027047703,0.952,617.26,616.65,0.26360664]
[1743027048102,0.952,617.26,616.64,0.32433834]
[1743027048710,0.952,617.26,616.65,0.26358747]
[1743027049009,0.952,617.26,616.66,0.32432783]
[1743027049204,0.952,617.26,616.67,0.26358431]
[1743027049409,0.952,617.26,616.68,0.32431731]
[1743027049704,0.952,617.26,616.69,0.2635863]
[1743027050107,0.952,617.26,616.7,0.32430679]
[1743027050307,1.042,617.27,616.71,0.2635863]
[1743027050507,1.042,617.27,616.72,0.32429627]
[1743027050703,0.869,617.26,616.73,0.2635863]
[1743027052201,0.869,617.26,616.73,0.58787731]
[1743027052404,0.869,617.26,616.74,0.2635863]
[1743027052608,0.869,617.26,616.75,0.3242805]
[1743027052912,0.869,617.26,616.76,0.2635863]
[1743027053110,0.85,617.25,616.76,0.2635863]
[1743027053311,0.85,617.25,616.77,0.32426998]
[1743027053511,0.85,617.25,616.78,0.2635863]
[1743027058621,0.85,617.25,616.77,0.32426998]
[1743027058823,0.85,617.25,616.78,0.2635489]
[1743027060314,0.85,617.25,616.79,0.26354891]
[1743027060516,0.85,617.25,616.77,0.32426998]
[1743027060517,0.85,617.25,616.8,0.26354891]
[1743027060717,0.85,617.25,616.78,0.26354891]
[1743027060916,0.85,617.25,616.79,0.26354891]
[1743027061117,0.85,617.25,616.78,0.26354891]
[1743027061319,0.85,617.25,616.78,0.32426472]
[1743027061519,0.85,617.25,616.79,0.26354983]
[1743027063023,0.85,617.25,616.8,0.26354964]
[1743027063320,0.85,617.25,616.81,0.26354964]
[1743027063519,0.85,617.25,616.79,0.26354964]
[1743027063720,0.85,617.25,616.78,0.32426472]
[1743027065522,0.879,617.24,616.78,0.32426472]
[1743027072922,0.689,617.23,616.78,0.32426472]
[1743027077631,0.89,617.22,616.78,0.32426472]
[1743027080333,0.89,617.22,616.52,0.28208859]
[1743027080334,0.89,617.22,616.79,0.2636695]
[1743027080534,0.89,617.22,616.52,0.28208859]
[1743027080834,0.89,617.22,616.53,0.263672]
[1743027081433,0.89,617.22,616.54,0.263672]
[1743027081631,0.89,617.22,616.3,1.20028437]
[1743027081632,0.89,617.22,616.44,0.28209202]
[1743027081838,0.89,617.22,616.45,0.263672]
[1743027083943,0.89,617.22,616.44,0.28209202]
[1743027084238,0.89,617.22,616.45,0.26371627]
[1743027084433,0.89,617.22,616.13,1.44034125]
[1743027084434,0.89,617.22,616.32,0.26371627]
[1743027084630,0.89,617.22,616.21,1.20028437]
[1743027084631,0.89,617.22,616.33,0.26371627]
[1743027084839,0.89,617.22,616.22,0.26371627]
[1743027085137,0.89,617.22,616.23,0.58827041]
[1743027085338,0.89,617.22,616.24,0.58826514]
[1743027085538,0.89,617.22,616.25,0.32454361]
[1743027085838,0.89,617.22,616.26,0.26372123]
[1743027086040,0.89,617.22,616.27,0.32453307]
[1743027086233,0.89,617.22,616.28,0.26372123]
[1743027086433,0.89,617.22,616.29,0.32452254]
[1743027086636,0.89,617.22,616.3,0.26372123]
[1743027086939,0.89,617.22,616.31,0.32451201]
[1743027087134,0.89,617.22,616.32,0.26372123]
[1743027087532,0.89,617.22,616.33,0.32450148]
[1743027087732,0.89,617.22,616.34,0.26372123]
[1743027087938,0.89,617.22,616.35,0.32449095]
[1743027088136,0.89,617.22,616.36,0.26372123]
[1743027088338,0.89,617.22,616.37,0.32448042]
[1743027088637,0.89,617.22,616.38,0.26372123]
[1743027088933,0.89,617.22,616.38,0.58819639]
[1743027089131,0.89,617.22,616.39,0.26372123]
[1743027090537,0.794,617.21,616.4,0.26372084]
[1743027090740,0.794,617.21,616.39,0.26372084]
[1743027090934,0.794,617.21,616.4,0.26372084]
[1743027091132,0.794,617.21,616.39,0.26372084]
[1743027091338,0.794,617.21,616.4,0.26372084]
[1743027091539,0.794,617.21,616.39,0.26372084]
[1743027091739,0.794,617.21,616.4,0.26372084]
[1743027091940,0.794,617.21,616.41,0.26372084]
[1743027092239,0.794,617.21,616.42,0.2637711]
[1743027092440,0.794,617.21,616.43,0.2637711]
[1743027092739,0.794,617.21,616.44,0.2637711]
[1743027093038,0.794,617.21,616.45,0.2637711]
[1743027093239,0.794,617.21,616.39,0.2637711]
[1743027093440,0.794,617.21,616.4,0.2637711]
[1743027093640,0.794,617.21,616.39,0.2637711]
[1743027093934,0.794,617.21,616.4,0.2637711]
[1743027094140,0.794,617.21,616.39,0.2637711]
[1743027094338,0.794,617.21,616.4,0.2637711]
[1743027094537,0.794,617.21,616.41,0.2637711]
[1743027094738,0.794,617.21,616.42,0.2637711]
[1743027095038,0.794,617.21,616.43,0.2637711]
[1743027095239,0.794,617.21,616.39,0.2637711]
[1743027095436,0.794,617.21,616.4,0.2637711]
[1743027095636,0.794,617.21,616.39,0.2637711]
[1743027095841,0.794,617.21,616.4,0.2637711]
[1743027096038,0.794,617.21,616.39,0.2637711]
[1743027096238,0.794,617.21,616.4,0.2637711]
[1743027096435,0.794,617.21,616.39,0.2637711]
[1743027096639,0.794,617.21,616.4,0.2637711]
[1743027096835,0.794,617.21,616.39,0.2637711]
[1743027097039,0.794,617.21,616.4,0.2637711]
[1743027097242,0.794,617.21,616.39,0.2637711]
[1743027097444,0.794,617.21,616.4,0.2637711]
[1743027097743,0.794,617.21,616.41,0.2637711]
[1743027097940,0.794,617.21,616.39,0.2637711]
[1743027098138,0.794,617.21,616.4,0.2637711]
[1743027098343,0.794,617.21,616.39,0.2637711]
[1743027098542,0.794,617.21,616.4,0.2637711]